[Event "Early-Titled-Tuesday-Blitz-March-26-2024"]
[Site "Chess.com"]
[Date "2024.03.26"]
[Round "2"]
[White "tptagain"]
[Black "Boundless_Strike"]
[Result "1-0"]
[WhiteElo "2949"]
[BlackElo "2632"]
[TimeControl "180+1"]
[EndTime "8:16:47 PDT"]
[Termination "tptagain won by resignation"]

1. Nf3 {[%clk 0:03:00.9]} 1... d6 {[%clk 0:02:59]} 2. d4 {[%clk 0:03:00.5]} 2...
e5 {[%clk 0:02:59.9]} 3. dxe5 {[%clk 0:03:00.7]} 3... Bg4 {[%clk 0:03:00.7]} 4.
Nc3 {[%clk 0:02:53.8]} 4... Nc6 {[%clk 0:03:00.6]} 5. exd6 {[%clk 0:02:53.4]}
5... Bxd6 {[%clk 0:03:00.8]} 6. h3 {[%clk 0:02:51.3]} 6... Bh5 {[%clk
0:03:00.7]} 7. Ne4 {[%clk 0:02:43.7]} 7... Bb4+ {[%clk 0:02:58.6]} 8. c3 {[%clk
0:02:43.2]} 8... Qe7 {[%clk 0:02:54.2]} 9. Ng3 {[%clk 0:02:39]} 9... Bxf3 {[%clk
0:02:47.5]} 10. gxf3 {[%clk 0:02:39.4]} 10... Rd8 {[%clk 0:01:59.9]} 11. Qa4
{[%clk 0:02:32.8]} 11... Bc5 {[%clk 0:01:45.2]} 12. Ne4 {[%clk 0:02:25.2]} 12...
Bb6 {[%clk 0:01:40.9]} 13. Bg2 {[%clk 0:02:00.2]} 13... Nf6 {[%clk 0:00:59.5]}
14. Bg5 {[%clk 0:01:58.1]} 14... h6 {[%clk 0:00:59.2]} 15. Bxf6 {[%clk
0:01:57.8]} 15... gxf6 {[%clk 0:00:59.4]} 16. Ng3 {[%clk 0:01:56.6]} 16... Rg8
{[%clk 0:00:56.3]} 17. Qe4 {[%clk 0:01:26.1]} 17... h5 {[%clk 0:00:24.4]} 18. f4
{[%clk 0:01:15.8]} 18... h4 {[%clk 0:00:22.9]} 19. Nf5 {[%clk 0:01:15.6]} 19...
Qxe4 {[%clk 0:00:19.1]} 20. Bxe4 {[%clk 0:01:16.5]} 20... Ne7 {[%clk 0:00:18.4]}
21. Nxh4 {[%clk 0:01:12.1]} 21... c6 {[%clk 0:00:14.7]} 22. e3 {[%clk
0:01:11.4]} 22... Rh8 {[%clk 0:00:11]} 23. Nf5 {[%clk 0:01:09.7]} 23... Nxf5
{[%clk 0:00:11.2]} 24. Bxf5 {[%clk 0:01:10.6]} 24... Ke7 {[%clk 0:00:12]} 25.
Rd1 {[%clk 0:01:09.8]} 25... Rxd1+ {[%clk 0:00:11.9]} 26. Kxd1 {[%clk
0:01:10.7]} 26... Rg8 {[%clk 0:00:10.8]} 27. h4 {[%clk 0:01:10]} 27... Rg2
{[%clk 0:00:11]} 28. Ke2 {[%clk 0:01:10.1]} 28... Kf8 {[%clk 0:00:11.7]} 29. h5
{[%clk 0:01:10]} 29... Kg8 {[%clk 0:00:11.4]} 30. h6 {[%clk 0:01:10.1]} 30...
Kh8 {[%clk 0:00:11.5]} 31. Rd1 {[%clk 0:01:09.9]} 31... Rh2 {[%clk 0:00:11.3]}
32. h7 {[%clk 0:01:10.1]} 32... Kg7 {[%clk 0:00:11]} 33. Rd7 {[%clk 0:01:08.9]}
33... Kf8 {[%clk 0:00:09.9]} 34. Rxb7 {[%clk 0:01:07.4]} 34... Kg7 {[%clk
0:00:09.5]} 35. b4 {[%clk 0:01:03.2]} 1-0

[Event "Early-Titled-Tuesday-Blitz-March-26-2024"]
[Site "Chess.com"]
[Date "2024.03.26"]
[Round "2"]
[White "esrosenberg"]
[Black "esteban062000"]
[Result "1-0"]
[WhiteElo "2479"]
[BlackElo "2166"]
[TimeControl "180+1"]
[EndTime "8:16:48 PDT"]
[Termination "esrosenberg won by resignation"]

1. d4 {[%clk 0:03:00.9]} 1... Nf6 {[%clk 0:02:57.6]} 2. c4 {[%clk 0:03:00.9]}
2... e6 {[%clk 0:02:55.8]} 3. Nc3 {[%clk 0:03:01]} 3... Bb4 {[%clk 0:02:55.8]}
4. Nf3 {[%clk 0:03:01.6]} 4... O-O {[%clk 0:02:55.2]} 5. Bg5 {[%clk 0:03:01.6]}
5... d6 {[%clk 0:02:54.1]} 6. Qc2 {[%clk 0:02:58.9]} 6... h6 {[%clk 0:02:52.7]}
7. Bh4 {[%clk 0:02:59]} 7... b6 {[%clk 0:02:51.8]} 8. e3 {[%clk 0:02:58.7]} 8...
Nbd7 {[%clk 0:02:51.2]} 9. Bd3 {[%clk 0:02:49.3]} 9... Bb7 {[%clk 0:02:50.6]}
10. O-O {[%clk 0:02:49.9]} 10... Bxc3 {[%clk 0:02:50]} 11. bxc3 {[%clk
0:02:46.8]} 11... c5 {[%clk 0:02:50.3]} 12. Nd2 {[%clk 0:02:44.8]} 12... Qc7
{[%clk 0:02:46.6]} 13. a4 {[%clk 0:02:39.6]} 13... d5 {[%clk 0:02:42]} 14. a5
{[%clk 0:02:33.3]} 14... dxc4 {[%clk 0:02:41]} 15. Nxc4 {[%clk 0:02:25.5]} 15...
b5 {[%clk 0:02:09.4]} 16. Nd2 {[%clk 0:02:17.2]} 16... c4 {[%clk 0:02:09.2]} 17.
Be4 {[%clk 0:02:12]} 17... Nxe4 {[%clk 0:02:01.7]} 18. Nxe4 {[%clk 0:02:12.2]}
18... Qc6 {[%clk 0:01:55]} 19. f3 {[%clk 0:02:11.9]} 19... e5 {[%clk 0:01:39.4]}
20. Bg3 {[%clk 0:01:52.1]} 20... exd4 {[%clk 0:01:31.8]} 21. exd4 {[%clk
0:01:52.2]} 21... Qg6 {[%clk 0:01:29.6]} 22. a6 {[%clk 0:01:13.2]} 22... Bxa6
{[%clk 0:01:19.4]} 23. Qb2 {[%clk 0:01:13.4]} 23... Bb7 {[%clk 0:00:38.8]} 24.
Qxb5 {[%clk 0:01:07.4]} 24... Nb6 {[%clk 0:00:20.2]} 25. Nc5 {[%clk 0:00:55]}
25... Bc6 {[%clk 0:00:18.6]} 26. Qb1 {[%clk 0:00:54]} 26... Nd5 {[%clk
0:00:18.4]} 27. Qxg6 {[%clk 0:00:43.7]} 27... fxg6 {[%clk 0:00:19.3]} 28. Rfc1
{[%clk 0:00:43.4]} 28... Rfe8 {[%clk 0:00:18.6]} 29. Ra6 {[%clk 0:00:40]} 29...
Bb7 {[%clk 0:00:18.1]} 30. Nxb7 {[%clk 0:00:39.4]} 1-0

[Event "Early-Titled-Tuesday-Blitz-March-26-2024"]
[Site "Chess.com"]
[Date "2024.03.26"]
[Round "2"]
[White "monomita"]
[Black "Tol_Tol"]
[Result "1-0"]
[WhiteElo "2744"]
[BlackElo "2345"]
[TimeControl "180+1"]
[EndTime "8:16:54 PDT"]
[Termination "monomita won by resignation"]

1. e4 {[%clk 0:02:59.7]} 1... c5 {[%clk 0:02:59.8]} 2. Nf3 {[%clk 0:02:57.7]}
2... Nc6 {[%clk 0:03:00.2]} 3. Bb5 {[%clk 0:02:57.5]} 3... e6 {[%clk 0:03:00.4]}
4. O-O {[%clk 0:02:55.7]} 4... Nge7 {[%clk 0:03:00.3]} 5. Re1 {[%clk 0:02:54.9]}
5... a6 {[%clk 0:03:00.5]} 6. Bf1 {[%clk 0:02:54.1]} 6... Ng6 {[%clk 0:03:00.8]}
7. c3 {[%clk 0:02:48.9]} 7... b5 {[%clk 0:03:00.1]} 8. d4 {[%clk 0:02:48]} 8...
cxd4 {[%clk 0:02:58]} 9. cxd4 {[%clk 0:02:48.9]} 9... Bb7 {[%clk 0:02:57.8]} 10.
Nc3 {[%clk 0:02:40.8]} 10... Be7 {[%clk 0:02:57.6]} 11. d5 {[%clk 0:02:39.7]}
11... Nce5 {[%clk 0:02:57.7]} 12. Nxe5 {[%clk 0:02:38.3]} 12... Nxe5 {[%clk
0:02:57.7]} 13. Bf4 {[%clk 0:02:38.8]} 13... Ng6 {[%clk 0:02:54.9]} 14. Bg3
{[%clk 0:02:37.8]} 14... e5 {[%clk 0:02:54.6]} 15. a4 {[%clk 0:02:35.1]} 15...
b4 {[%clk 0:02:53.8]} 16. Nb1 {[%clk 0:02:35.2]} 16... d6 {[%clk 0:02:53.7]} 17.
a5 {[%clk 0:02:33.9]} 17... O-O {[%clk 0:02:48.4]} 18. Nd2 {[%clk 0:02:33.7]}
18... f5 {[%clk 0:02:34.6]} 19. exf5 {[%clk 0:02:33.2]} 19... Rxf5 {[%clk
0:02:34.9]} 20. Bd3 {[%clk 0:02:30.9]} 20... Rf6 {[%clk 0:02:35.2]} 21. Be4
{[%clk 0:02:27.2]} 21... Nf4 {[%clk 0:02:33.5]} 22. Nc4 {[%clk 0:02:27.6]} 22...
Rc8 {[%clk 0:02:28.9]} 23. Nb6 {[%clk 0:02:26.2]} 23... Rc5 {[%clk 0:02:24.1]}
24. Qa4 {[%clk 0:02:13.7]} 24... Rb5 {[%clk 0:01:49]} 25. Rac1 {[%clk
0:02:06.6]} 25... Rf8 {[%clk 0:01:31.8]} 26. Rc4 {[%clk 0:01:58.7]} 26... Nxd5
{[%clk 0:01:13.6]} 27. Bxd5+ {[%clk 0:01:42.8]} 27... Bxd5 {[%clk 0:00:50.9]}
28. Rc8 {[%clk 0:01:38]} 28... Qxc8 {[%clk 0:00:50.7]} 29. Nxc8 {[%clk
0:01:38.5]} 29... Rxc8 {[%clk 0:00:51.3]} 30. Qd1 {[%clk 0:01:32.2]} 30... Rbc5
{[%clk 0:00:22.5]} 31. f4 {[%clk 0:01:25.5]} 31... exf4 {[%clk 0:00:09.7]} 32.
Bf2 {[%clk 0:01:22.8]} 32... Rxa5 {[%clk 0:00:07]} 33. Rxe7 {[%clk 0:01:22]}
33... b3 {[%clk 0:00:04.7]} 34. Bd4 {[%clk 0:01:20.4]} 34... Rc2 {[%clk
0:00:03.2]} 35. Rxg7+ {[%clk 0:01:18.7]} 35... Kf8 {[%clk 0:00:03.5]} 36. Qe1
{[%clk 0:01:18.7]} 36... Rxg2+ {[%clk 0:00:02.9]} 37. Rxg2 {[%clk 0:01:17.8]}
1-0

[Event "Early-Titled-Tuesday-Blitz-March-26-2024"]
[Site "Chess.com"]
[Date "2024.03.26"]
[Round "2"]
[White "xakevicius91"]
[Black "javierfreilemartin"]
[Result "1-0"]
[WhiteElo "2533"]
[BlackElo "2318"]
[TimeControl "180+1"]
[EndTime "8:16:54 PDT"]
[Termination "xakevicius91 won by resignation"]

1. e4 {[%clk 0:03:00.9]} 1... c5 {[%clk 0:02:59.2]} 2. Nf3 {[%clk 0:02:55.5]}
2... d6 {[%clk 0:02:59]} 3. d4 {[%clk 0:02:55.2]} 3... cxd4 {[%clk 0:02:59]} 4.
Nxd4 {[%clk 0:02:56.1]} 4... Nf6 {[%clk 0:02:58.7]} 5. Nc3 {[%clk 0:02:56.7]}
5... a6 {[%clk 0:02:58.9]} 6. f3 {[%clk 0:02:56.8]} 6... e6 {[%clk 0:02:56.6]}
7. Be3 {[%clk 0:02:56.1]} 7... b5 {[%clk 0:02:52.6]} 8. Qd2 {[%clk 0:02:56.2]}
8... Bb7 {[%clk 0:02:52.8]} 9. a3 {[%clk 0:02:55.9]} 9... Nbd7 {[%clk
0:02:52.9]} 10. Rg1 {[%clk 0:02:56.5]} 10... h5 {[%clk 0:02:51.8]} 11. O-O-O
{[%clk 0:02:51.8]} 11... Rc8 {[%clk 0:02:51.4]} 12. Kb1 {[%clk 0:02:52.1]} 12...
Qc7 {[%clk 0:02:40.7]} 13. Be2 {[%clk 0:02:50.6]} 13... d5 {[%clk 0:02:39.9]}
14. exd5 {[%clk 0:02:49.9]} 14... Bxd5 {[%clk 0:02:39.4]} 15. Rge1 {[%clk
0:02:43.1]} 15... b4 {[%clk 0:02:26.2]} 16. Nxd5 {[%clk 0:02:37.4]} 16... Nxd5
{[%clk 0:02:25.1]} 17. a4 {[%clk 0:02:34]} 17... Bc5 {[%clk 0:02:11.3]} 18. Bxa6
{[%clk 0:02:29.9]} 18... Nxe3 {[%clk 0:02:09.9]} 19. Rxe3 {[%clk 0:02:24.9]}
19... Bxd4 {[%clk 0:02:08.9]} 20. Bxc8 {[%clk 0:02:14.5]} 20... Bxe3 {[%clk
0:02:04.8]} 21. Bxd7+ {[%clk 0:02:13.2]} 21... Ke7 {[%clk 0:02:02]} 22. Qxe3
{[%clk 0:02:11.9]} 22... Rd8 {[%clk 0:02:01.2]} 23. Qd4 {[%clk 0:02:05.7]} 23...
Rxd7 {[%clk 0:01:42.4]} 24. Qxb4+ {[%clk 0:02:00]} 24... Kf6 {[%clk 0:01:36.5]}
25. Rxd7 {[%clk 0:01:48.3]} 25... Qxd7 {[%clk 0:01:36.4]} 26. Qf4+ {[%clk
0:01:42.2]} 26... Kg6 {[%clk 0:01:34.8]} 27. Qe4+ {[%clk 0:01:40.4]} 27... f5
{[%clk 0:01:33.3]} 28. Qe2 {[%clk 0:01:36.5]} 28... Qxa4 {[%clk 0:01:31.8]} 29.
Qxe6+ {[%clk 0:01:35.6]} 29... Kg5 {[%clk 0:01:30.3]} 30. Qe7+ {[%clk
0:01:28.1]} 30... Kh6 {[%clk 0:01:27.6]} 31. h4 {[%clk 0:01:24.5]} 31... g6
{[%clk 0:01:21.1]} 32. Qg5+ {[%clk 0:01:22.8]} 32... Kh7 {[%clk 0:01:19.4]} 33.
b3 {[%clk 0:01:21.6]} 33... Qd4 {[%clk 0:01:13.9]} 34. Qe7+ {[%clk 0:01:17.3]}
34... Kh6 {[%clk 0:01:09.5]} 35. Qe1 {[%clk 0:01:17.5]} 35... Qd6 {[%clk
0:00:57]} 36. b4 {[%clk 0:01:15.2]} 36... g5 {[%clk 0:00:54.2]} 37. hxg5+ {[%clk
0:01:10.9]} 37... Kxg5 {[%clk 0:00:53.8]} 38. Kb2 {[%clk 0:01:07.9]} 38... Qd4+
{[%clk 0:00:47.2]} 39. c3 {[%clk 0:01:06.7]} 39... Qc4 {[%clk 0:00:43.5]} 40.
Qd2+ {[%clk 0:01:03.6]} 40... f4 {[%clk 0:00:38]} 41. Qf2 {[%clk 0:00:59.8]}
41... h4 {[%clk 0:00:19.8]} 42. Qc5+ {[%clk 0:00:56.6]} 1-0

[Event "Early-Titled-Tuesday-Blitz-March-26-2024"]
[Site "Chess.com"]
[Date "2024.03.26"]
[Round "2"]
[White "rezamahdavi2008"]
[Black "Kazmin_Semyon"]
[Result "1-0"]
[WhiteElo "2839"]
[BlackElo "2566"]
[TimeControl "180+1"]
[EndTime "8:16:55 PDT"]
[Termination "rezamahdavi2008 won by resignation"]

1. Nf3 {[%clk 0:03:00.4]} 1... Nf6 {[%clk 0:02:59]} 2. d4 {[%clk 0:02:58.9]}
2... e6 {[%clk 0:02:59.5]} 3. c4 {[%clk 0:02:59.1]} 3... c5 {[%clk 0:02:57.7]}
4. d5 {[%clk 0:02:57.4]} 4... exd5 {[%clk 0:02:58.6]} 5. cxd5 {[%clk 0:02:58.3]}
5... d6 {[%clk 0:02:59.5]} 6. Nc3 {[%clk 0:02:57.9]} 6... g6 {[%clk 0:03:00.3]}
7. e4 {[%clk 0:02:54.3]} 7... Bg7 {[%clk 0:03:01]} 8. Be2 {[%clk 0:02:54]} 8...
O-O {[%clk 0:03:00.5]} 9. O-O {[%clk 0:02:54.6]} 9... Bg4 {[%clk 0:03:00.7]} 10.
Nd2 {[%clk 0:02:55.1]} 10... Bxe2 {[%clk 0:03:00.3]} 11. Qxe2 {[%clk 0:02:56]}
11... Re8 {[%clk 0:03:00.4]} 12. a4 {[%clk 0:02:55]} 12... Nbd7 {[%clk
0:03:00.2]} 13. Rd1 {[%clk 0:02:51.4]} 13... Nb6 {[%clk 0:03:00.5]} 14. Qd3
{[%clk 0:02:49.3]} 14... Ng4 {[%clk 0:02:59.8]} 15. a5 {[%clk 0:02:46.6]} 15...
Nd7 {[%clk 0:02:34.9]} 16. h3 {[%clk 0:02:43.9]} 16... Nge5 {[%clk 0:02:15.6]}
17. Qc2 {[%clk 0:02:43.9]} 17... Qh4 {[%clk 0:02:14.7]} 18. Nb5 {[%clk
0:02:38.3]} 18... f5 {[%clk 0:01:10]} 19. exf5 {[%clk 0:02:18]} 19... Rf8 {[%clk
0:01:00.9]} 20. Nxd6 {[%clk 0:02:16.5]} 20... g5 {[%clk 0:00:48]} 21. N2e4
{[%clk 0:02:01.6]} 21... g4 {[%clk 0:00:39.4]} 22. Ra3 {[%clk 0:02:02.2]} 22...
h6 {[%clk 0:00:24.8]} 23. hxg4 {[%clk 0:01:49.8]} 23... Nxg4 {[%clk 0:00:22.8]}
24. Rh3 {[%clk 0:01:50.5]} 24... Qe7 {[%clk 0:00:23.5]} 25. Rg3 {[%clk
0:01:44.9]} 25... h5 {[%clk 0:00:22.8]} 26. Bg5 {[%clk 0:01:43.2]} 26... Qe5
{[%clk 0:00:21.2]} 27. Rd2 {[%clk 0:01:28.2]} 27... Kh7 {[%clk 0:00:17]} 28. f4
{[%clk 0:01:28.5]} 28... Qxb2 {[%clk 0:00:08.5]} 29. Qxb2 {[%clk 0:01:28.8]}
29... Bxb2 {[%clk 0:00:09.3]} 30. Rxb2 {[%clk 0:01:29.7]} 30... b6 {[%clk
0:00:09.9]} 31. Rh3 {[%clk 0:01:27.9]} 31... Kg7 {[%clk 0:00:08]} 32. Rxh5
{[%clk 0:01:28.1]} 32... Rab8 {[%clk 0:00:08.2]} 33. f6+ {[%clk 0:01:27.7]}
33... Kg6 {[%clk 0:00:08.3]} 34. Rh4 {[%clk 0:01:27.3]} 34... Ne3 {[%clk
0:00:08.6]} 35. Re2 {[%clk 0:01:23]} 35... Nf5 {[%clk 0:00:07.7]} 36. Nxf5
{[%clk 0:01:23.5]} 36... Kxf5 {[%clk 0:00:07.9]} 37. g4+ {[%clk 0:01:24.4]}
37... Kg6 {[%clk 0:00:08.1]} 38. f5+ {[%clk 0:01:25.3]} 38... Kf7 {[%clk
0:00:08]} 39. Rh7+ {[%clk 0:01:25.4]} 39... Ke8 {[%clk 0:00:07.7]} 40. f7+
{[%clk 0:01:17.9]} 1-0

[Event "Early-Titled-Tuesday-Blitz-March-26-2024"]
[Site "Chess.com"]
[Date "2024.03.26"]
[Round "2"]
[White "DenLaz"]
[Black "only_strong_moves"]
[Result "1-0"]
[WhiteElo "3086"]
[BlackElo "2707"]
[TimeControl "180+1"]
[EndTime "8:16:56 PDT"]
[Termination "DenLaz won on time"]

1. d4 {[%clk 0:03:00.9]} 1... Nf6 {[%clk 0:02:59.9]} 2. c4 {[%clk 0:03:01]} 2...
e6 {[%clk 0:03:00.5]} 3. Nf3 {[%clk 0:03:00.1]} 3... d5 {[%clk 0:03:00.9]} 4. g3
{[%clk 0:03:00.8]} 4... Be7 {[%clk 0:03:01]} 5. Bg2 {[%clk 0:03:01.5]} 5... O-O
{[%clk 0:03:01.6]} 6. O-O {[%clk 0:03:02.2]} 6... dxc4 {[%clk 0:03:02.3]} 7. Qc2
{[%clk 0:03:02.9]} 7... a6 {[%clk 0:03:02.9]} 8. a4 {[%clk 0:03:03.3]} 8... Bd7
{[%clk 0:03:03.5]} 9. Qxc4 {[%clk 0:03:04]} 9... Bc6 {[%clk 0:03:03.9]} 10. Bg5
{[%clk 0:03:04.7]} 10... Nbd7 {[%clk 0:03:04.2]} 11. Nc3 {[%clk 0:03:04.5]}
11... h6 {[%clk 0:03:04.7]} 12. Bxf6 {[%clk 0:03:05]} 12... Nxf6 {[%clk
0:03:05.6]} 13. Rfd1 {[%clk 0:03:05.6]} 13... Bxf3 {[%clk 0:03:05.5]} 14. Bxf3
{[%clk 0:03:05.9]} 14... c6 {[%clk 0:03:05.8]} 15. e4 {[%clk 0:03:05.3]} 15...
Qa5 {[%clk 0:03:00.4]} 16. Kg2 {[%clk 0:03:04.3]} 16... Rfd8 {[%clk 0:02:59.4]}
17. h4 {[%clk 0:03:03.6]} 17... Rac8 {[%clk 0:02:59.1]} 18. Qe2 {[%clk
0:02:58.4]} 18... e5 {[%clk 0:02:57.3]} 19. d5 {[%clk 0:02:51.1]} 19... Bb4
{[%clk 0:02:56.9]} 20. dxc6 {[%clk 0:02:49.5]} 20... bxc6 {[%clk 0:02:43]} 21.
Qc4 {[%clk 0:02:48.7]} 21... Bc5 {[%clk 0:02:35]} 22. Be2 {[%clk 0:02:42.9]}
22... Bd4 {[%clk 0:02:14.6]} 23. Rac1 {[%clk 0:02:16.9]} 23... Qb6 {[%clk
0:01:57.9]} 24. Qxa6 {[%clk 0:02:04.3]} 24... Qxb2 {[%clk 0:01:57]} 25. Qc4
{[%clk 0:01:37]} 25... Bxc3 {[%clk 0:01:27.8]} 26. Rxc3 {[%clk 0:01:21.9]} 26...
Rxd1 {[%clk 0:01:17.3]} 27. Bxd1 {[%clk 0:01:22.8]} 27... Nxe4 {[%clk
0:01:02.3]} 28. Rc2 {[%clk 0:01:22]} 28... Qd4 {[%clk 0:00:38.6]} 29. Bf3 {[%clk
0:01:21.2]} 29... Nd6 {[%clk 0:00:15.8]} 30. Qxd4 {[%clk 0:01:17.2]} 30... exd4
{[%clk 0:00:16.7]} 31. Rxc6 {[%clk 0:01:17.7]} 31... Rxc6 {[%clk 0:00:09.2]} 32.
Bxc6 {[%clk 0:01:16.9]} 32... Nc4 {[%clk 0:00:10.1]} 33. Bb5 {[%clk 0:01:13.9]}
33... Na5 {[%clk 0:00:04.2]} 34. Kf3 {[%clk 0:01:14.1]} 34... Kf8 {[%clk
0:00:04.1]} 35. Ke4 {[%clk 0:01:14.6]} 35... Nb3 {[%clk 0:00:04.3]} 36. Kd5
{[%clk 0:01:09.2]} 36... Ke7 {[%clk 0:00:03.8]} 37. Bc4 {[%clk 0:01:09.6]} 37...
Na5 {[%clk 0:00:02.9]} 38. Kxd4 {[%clk 0:01:10.2]} 38... f6 {[%clk 0:00:02.3]}
39. Bd5 {[%clk 0:01:08.7]} 39... Kd6 {[%clk 0:00:02.3]} 40. h5 {[%clk
0:01:09.4]} 1-0

[Event "Early-Titled-Tuesday-Blitz-March-26-2024"]
[Site "Chess.com"]
[Date "2024.03.26"]
[Round "2"]
[White "Kiborg95"]
[Black "UK_23"]
[Result "1-0"]
[WhiteElo "2771"]
[BlackElo "2405"]
[TimeControl "180+1"]
[EndTime "8:16:56 PDT"]
[Termination "Kiborg95 won by resignation"]

1. e4 {[%clk 0:03:00.9]} 1... e5 {[%clk 0:02:56.7]} 2. Nf3 {[%clk 0:02:56.8]}
2... Nf6 {[%clk 0:02:53.4]} 3. d3 {[%clk 0:02:54.9]} 3... Nc6 {[%clk 0:02:52.5]}
4. c3 {[%clk 0:02:55]} 4... d5 {[%clk 0:02:51.5]} 5. Nbd2 {[%clk 0:02:54.6]}
5... a5 {[%clk 0:02:50.7]} 6. Be2 {[%clk 0:02:54.6]} 6... Bc5 {[%clk 0:02:47.7]}
7. O-O {[%clk 0:02:54.7]} 7... O-O {[%clk 0:02:47.7]} 8. h3 {[%clk 0:02:55.2]}
8... Re8 {[%clk 0:02:48]} 9. Re1 {[%clk 0:02:55.5]} 9... Ba7 {[%clk 0:02:48.1]}
10. a4 {[%clk 0:02:54.8]} 10... h6 {[%clk 0:02:47.9]} 11. exd5 {[%clk
0:02:54.3]} 11... Nxd5 {[%clk 0:02:47.9]} 12. Bf1 {[%clk 0:02:54.7]} 12... Nf4
{[%clk 0:02:44.9]} 13. Nc4 {[%clk 0:02:39.5]} 13... Qf6 {[%clk 0:02:37.5]} 14.
d4 {[%clk 0:02:39.6]} 14... e4 {[%clk 0:01:52.6]} 15. Nh2 {[%clk 0:02:38.2]}
15... Nd5 {[%clk 0:01:27.5]} 16. Qh5 {[%clk 0:02:33.6]} 16... Bf5 {[%clk
0:01:22]} 17. g4 {[%clk 0:02:22]} 17... Bg6 {[%clk 0:00:38.4]} 18. Qxd5 {[%clk
0:02:14.5]} 18... Rad8 {[%clk 0:00:38.9]} 19. Qb5 {[%clk 0:02:08.2]} 19... Nxd4
{[%clk 0:00:36.5]} 20. cxd4 {[%clk 0:02:08.1]} 20... Bxd4 {[%clk 0:00:37.4]} 21.
Be3 {[%clk 0:02:05.7]} 21... c6 {[%clk 0:00:37.1]} 22. Qb3 {[%clk 0:02:02.1]}
22... Bxe3 {[%clk 0:00:33.2]} 23. Rxe3 {[%clk 0:01:53.3]} 23... Rd4 {[%clk
0:00:31.4]} 24. Qxb7 {[%clk 0:01:43.2]} 24... Red8 {[%clk 0:00:28.8]} 25. Nxa5
{[%clk 0:01:42.6]} 25... Rd2 {[%clk 0:00:28.1]} 26. Re2 {[%clk 0:01:39]} 26...
Rxe2 {[%clk 0:00:24.3]} 27. Bxe2 {[%clk 0:01:39.9]} 27... Rd2 {[%clk 0:00:24.7]}
28. Re1 {[%clk 0:01:33.7]} 28... e3 {[%clk 0:00:16.1]} 29. fxe3 {[%clk
0:01:28.8]} 29... Qd6 {[%clk 0:00:15.8]} 30. Nf1 {[%clk 0:01:23.3]} 30... Be4
{[%clk 0:00:11.9]} 31. Nc4 {[%clk 0:01:17.5]} 31... Rxe2 {[%clk 0:00:12]} 32.
Nxd6 {[%clk 0:00:47.2]} 32... Rg2+ {[%clk 0:00:11.4]} 33. Kh1 {[%clk 0:00:47.9]}
33... Bf3 {[%clk 0:00:07.9]} 34. Qc8+ {[%clk 0:00:48.2]} 34... Kh7 {[%clk
0:00:07.6]} 35. Qf5+ {[%clk 0:00:49.1]} 1-0

[Event "Early-Titled-Tuesday-Blitz-March-26-2024"]
[Site "Chess.com"]
[Date "2024.03.26"]
[Round "2"]
[White "SpeedofLight0"]
[Black "Gurvich_Vitaly"]
[Result "1-0"]
[WhiteElo "3079"]
[BlackElo "2701"]
[TimeControl "180+1"]
[EndTime "8:16:59 PDT"]
[Termination "SpeedofLight0 won by resignation"]

1. d4 {[%clk 0:03:00]} 1... Nf6 {[%clk 0:02:59.5]} 2. Nc3 {[%clk 0:03:00.7]}
2... d5 {[%clk 0:02:59.1]} 3. Bf4 {[%clk 0:03:00.1]} 3... c6 {[%clk 0:02:57.8]}
4. e3 {[%clk 0:02:59.9]} 4... Bf5 {[%clk 0:02:57.6]} 5. Bd3 {[%clk 0:02:59.7]}
5... Bxd3 {[%clk 0:02:56.3]} 6. cxd3 {[%clk 0:03:00.4]} 6... e6 {[%clk
0:02:55.9]} 7. Nf3 {[%clk 0:02:59.8]} 7... Bd6 {[%clk 0:02:52.9]} 8. Qb3 {[%clk
0:02:58.7]} 8... b6 {[%clk 0:02:52.7]} 9. Ne5 {[%clk 0:02:57.2]} 9... O-O {[%clk
0:02:52.1]} 10. Rc1 {[%clk 0:02:56.1]} 10... Qe7 {[%clk 0:02:50.6]} 11. O-O
{[%clk 0:02:54.5]} 11... Rc8 {[%clk 0:02:47.7]} 12. Nb5 {[%clk 0:02:52.7]} 12...
Ne8 {[%clk 0:02:38.7]} 13. Nxd6 {[%clk 0:02:46.8]} 13... Nxd6 {[%clk 0:02:38.4]}
14. Qa3 {[%clk 0:02:46.5]} 14... Nf5 {[%clk 0:02:23.5]} 15. Qa4 {[%clk
0:02:45.4]} 15... Qb7 {[%clk 0:02:18.7]} 16. e4 {[%clk 0:02:40.6]} 16... Ne7
{[%clk 0:02:18.3]} 17. Rc3 {[%clk 0:02:37.7]} 17... f6 {[%clk 0:02:14.6]} 18.
Nf3 {[%clk 0:02:35]} 18... Nd7 {[%clk 0:02:09.5]} 19. Rfc1 {[%clk 0:02:33.1]}
19... c5 {[%clk 0:02:00.6]} 20. Bd6 {[%clk 0:02:30]} 20... b5 {[%clk 0:01:19.9]}
21. Qd1 {[%clk 0:02:20.4]} 21... b4 {[%clk 0:01:17.1]} 22. R3c2 {[%clk
0:02:18.7]} 22... Ng6 {[%clk 0:01:01.8]} 23. dxc5 {[%clk 0:02:17.8]} 23... Qa6
{[%clk 0:00:51.9]} 24. Nd4 {[%clk 0:02:09.7]} 24... Nde5 {[%clk 0:00:46.9]} 25.
Rd2 {[%clk 0:01:45.4]} 25... Kf7 {[%clk 0:00:44.2]} 26. exd5 {[%clk 0:01:41.8]}
26... exd5 {[%clk 0:00:44.1]} 27. Qb3 {[%clk 0:01:41.5]} 27... Nf4 {[%clk
0:00:40.7]} 28. g3 {[%clk 0:01:34]} 28... Nfxd3 {[%clk 0:00:34.1]} 29. Qxd5+
{[%clk 0:01:32.6]} 29... Kg6 {[%clk 0:00:33.8]} 30. Rcd1 {[%clk 0:01:28.1]}
30... Re8 {[%clk 0:00:18.9]} 31. Rxd3 {[%clk 0:01:23.3]} 31... Nxd3 {[%clk
0:00:19.8]} 32. Qf5+ {[%clk 0:01:23]} 32... Kf7 {[%clk 0:00:20.3]} 33. Rxd3
{[%clk 0:01:20.5]} 33... Re1+ {[%clk 0:00:20.6]} 34. Kg2 {[%clk 0:01:20.4]}
34... Qc4 {[%clk 0:00:17.8]} 35. b3 {[%clk 0:01:09.1]} 35... Qc1 {[%clk
0:00:10.3]} 36. Nf3 {[%clk 0:01:04]} 36... Ree8 {[%clk 0:00:02.2]} 37. Qd5+
{[%clk 0:00:56.9]} 37... Kg6 {[%clk 0:00:02.5]} 38. Nh4+ {[%clk 0:00:57]} 1-0